bitfinex-derivatives/quotes_ETHF0:USTF0_20250910
["timestamp","ask_amount","ask_price","bid_price","bid_amount"]
[1757532270063,3.6548,4312.8,4312.7,0.7328]
[1757532270264,7.8633,4312.8,4311.6,0.3184]
[1757532270465,0.208,4311.7,4311.6,0.5341]
[1757532270665,0.4165,4311.7,4311.6,0.5341]
[1757532271363,0.4165,4311.7,4311.0,0.21978356]
[1757532271364,0.4165,4311.1,4311.0,0.21978356]
[1757532271661,0.239,4311.2,4311.1,0.7328]
[1757532271863,3.2078,4311.6,4311.2,0.3184]
[1757532272068,0.239,4311.7,4311.5,0.8598]
[1757532272264,0.239,4311.7,4311.6,0.7328]
[1757532272563,0.239,4312.1,4312.0,0.5414]
[1757532272769,0.447,4312.1,4312.0,0.8598]
[1757532272961,0.6555,4312.1,4312.0,0.8598]
[1757532273162,0.447,4312.1,4312.0,0.8598]
[1757532273366,0.239,4312.1,4312.0,0.8598]
[1757532273562,3.2078,4312.6,4312.5,0.127]
[1757532273766,0.2318,4312.9,4312.5,0.8598]
[1757532274066,0.4398,4312.9,4312.8,0.5341]
[1757532274464,0.4398,4312.9,4312.8,0.7328]
[1757532274867,0.2318,4312.9,4312.8,0.7328]
[1757532275269,0.2318,4312.9,4312.8,0.3184]
[1757532275474,3.2078,4314.0,4313.5,0.127]
[1757532275675,3.2078,4314.0,4313.6,0.3184]
[1757532276169,3.2078,4314.7,4314.6,0.3184]
[1757532277173,3.2078,4315.2,4315.1,0.3184]
[1757532277362,0.24,4315.5,4315.1,0.3184]
[1757532277865,3.2078,4315.7,4315.1,0.3184]
[1757532278067,3.2078,4315.7,4315.6,0.3184]
[1757532278461,0.24,4315.8,4315.5,0.127]
[1757532279469,0.24,4315.8,4315.0,0.127]
[1757532279470,3.2078,4315.6,4315.0,0.127]
[1757532279774,3.4142,4315.6,4315.1,0.3184]
[1757532279967,0.2064,4315.4,4315.0,0.3184]
[1757532280166,3.2078,4315.1,4315.0,0.3184]
[1757532281272,3.2078,4315.1,4314.5,0.4454]
[1757532282474,3.2078,4314.6,4314.0,0.4454]
[1757532282672,0.4464,4314.5,4314.0,0.127]
[1757532282873,0.4464,4314.5,4314.1,0.3184]
[1757532283376,0.239,4315.0,4314.5,0.4454]
[1757532283580,0.2064,4314.9,4314.6,0.3184]
[1757532283875,0.2064,4314.9,4314.1,0.3184]
[1757532284074,3.2078,4314.6,4314.0,0.4454]
[1757532284277,0.4464,4314.5,4314.1,0.3184]
[1757532284579,0.2064,4314.3,4314.1,0.3184]
[1757532284777,0.24,4314.5,4314.1,0.3184]
[1757532285177,0.2064,4314.4,4314.1,0.3184]
[1757532285880,3.2078,4314.6,4314.5,0.4454]
[1757532286072,3.4478,4314.6,4314.5,0.4454]
[1757532286474,0.239,4314.9,4314.5,0.127]
[1757532286675,0.239,4314.9,4314.6,0.3184]
[1757532287276,3.2078,4315.1,4314.6,0.3184]
[1757532287277,3.2078,4315.1,4315.0,0.127]
[1757532287577,3.2078,4315.1,4315.0,0.4454]
[1757532288280,0.239,4315.5,4315.1,0.3184]
[1757532288474,0.239,4315.5,4315.0,0.127]
[1757532288979,0.239,4315.5,4315.1,0.3184]
[1757532289179,0.239,4315.5,4315.0,0.127]
[1757532289387,3.2078,4315.2,4314.6,0.3184]
[1757532289679,3.4468,4315.2,4314.6,0.3184]
[1757532291177,3.4468,4315.2,4315.1,0.3184]
[1757532291376,3.4468,4315.2,4314.7,0.3184]
[1757532291577,0.2064,4315.1,4314.5,0.127]
[1757532291779,0.2064,4315.1,4314.5,0.4454]
[1757532292382,3.4142,4314.6,4314.5,0.3184]
[1757532292980,3.2078,4314.6,4314.5,0.3184]
[1757532293179,3.2078,4314.6,4314.5,0.4454]
[1757532294684,0.2064,4315.1,4314.5,0.127]
[1757532294884,0.239,4314.8,4314.5,0.127]
[1757532295085,0.2067,4314.7,4314.1,0.3184]
[1757532295283,0.208,4314.2,4314.1,0.5341]
[1757532295681,0.208,4314.2,4314.1,0.7328]
[1757532296488,0.239,4314.8,4314.2,0.3184]
[1757532296688,0.208,4314.7,4314.6,0.5341]
[1757532296893,0.208,4314.7,4314.6,0.7328]
[1757532297190,0.239,4315.0,4314.9,0.7063]
[1757532297385,0.6579,4315.0,4314.9,0.5065]
[1757532297585,0.6579,4315.0,4314.9,0.3061]
[1757532297790,0.4189,4314.7,4314.6,0.3061]
[1757532298085,0.4189,4314.7,4314.0,0.127]
[1757532298086,0.4189,4314.2,4314.1,0.3061]
[1757532298284,0.4189,4314.2,4313.8,3.2078]
[1757532298285,0.2064,4314.1,4313.8,3.2078]
[1757532298598,0.4189,4314.0,4313.9,0.5065]
[1757532299483,0.4189,4314.0,4313.6,0.3061]
[1757532299689,3.2078,4314.1,4313.6,0.3061]
[1757532299690,0.4189,4313.7,4313.6,0.3061]
[1757532300086,0.2064,4313.7,4313.1,3.2078]
[1757532300388,0.0603,4314.5,4312.6,0.3061]
[1757532300389,0.2064,4313.3,4312.6,0.3061]
[1757532300690,3.2078,4312.7,4312.6,0.3061]
[1757532301085,3.2078,4312.7,4312.1,0.3061]
[1757532302288,0.2064,4312.6,4312.1,0.3061]
[1757532302687,3.2078,4312.7,4312.1,0.3061]
[1757532302888,0.2064,4312.6,4312.1,0.3061]
[1757532303091,0.2064,4312.6,4312.0,0.1202]
[1757532303092,0.2064,4312.6,4312.0,0.4263]
[1757532303685,3.2078,4312.7,4312.5,0.1202]
[1757532303887,3.2078,4312.7,4312.6,0.3061]
[1757532304287,3.2078,4312.7,4312.0,0.1202]
[1757532304288,3.4142,4312.7,4312.0,0.1202]
[1757532304492,0.2064,4312.6,4311.8,3.2078]
[1757532304795,0.2064,4312.5,4311.8,3.2078]
[1757532305692,3.2078,4312.1,4311.6,0.3061]
[1757532306197,3.2078,4312.1,4311.2,3.4468]
[1757532306591,3.2078,4312.1,4311.6,0.3061]
[1757532306897,3.4142,4312.1,4311.4,0.3061]
[1757532309195,0.2928,4312.0,4311.2,3.2078]
[1757532309388,0.2064,4312.0,4311.3,0.3061]
[1757532309588,3.2078,4312.1,4311.3,0.3061]
[1757532309795,3.2078,4312.1,4311.2,3.2078]
[1757532309996,3.2078,4311.3,4311.0,0.00408356]
[1757532310187,0.2064,4311.1,4311.0,0.00408356]
[1757532310998,0.4454,4311.1,4311.0,0.00408356]
[1757532312301,4.4454,4311.1,4311.0,0.00408356]
[1757532312800,4.8643,4311.1,4311.0,0.00408356]
[1757532314103,0.6579,4311.1,4311.0,0.63078356]
[1757532315202,3.2078,4311.3,4311.0,0.83058356]
[1757532315400,3.2078,4312.3,4311.3,0.3061]
[1757532315595,3.2078,4312.3,4312.1,0.3061]
[1757532315900,3.2078,4312.3,4312.0,0.1202]
[1757532316896,0.2064,4312.2,4311.6,0.3061]
[1757532317090,0.2064,4311.6,4311.1,0.3061]
[1757532317295,3.4478,4311.7,4311.1,0.3061]
[1757532317496,3.4142,4311.2,4311.1,0.3061]
[1757532317799,0.24,4311.4,4311.1,0.3061]
[1757532318093,3.2078,4311.2,4311.1,0.3061]
[1757532318500,0.24,4311.4,4311.1,0.3061]
[1757532319895,3.2078,4311.7,4311.6,0.3061]
[1757532320301,3.2078,4311.7,4311.6,0.7063]
[1757532320897,0.24,4312.2,4312.1,0.7063]
[1757532321500,3.2078,4313.0,4312.2,0.3061]
[1757532321709,3.2078,4313.0,4312.9,0.7063]
[1757532322002,0.6253,4312.7,4312.6,0.3061]
[1757532322199,3.2078,4313.0,4312.7,0.3061]
[1757532322399,3.2078,4313.5,4312.7,4.3061]
[1757532322597,0.0864,4315.0,4312.5,0.3602]
[1757532322598,0.541,4314.0,4312.8,0.3061]
[1757532322795,0.6691,4314.0,4313.2,0.3061]
[1757532323101,0.301,4313.4,4312.7,0.3061]
[1757532323399,0.301,4312.9,4312.1,3.2078]
[1757532323599,3.2078,4312.3,4311.2,3.2078]
[1757532323900,0.541,4312.2,4311.3,0.3061]
[1757532324500,0.301,4312.2,4311.3,0.3061]
[1757532324697,0.241,4312.1,4311.3,0.3061]
[1757532326098,0.241,4312.1,4311.2,3.2078]
[1757532326099,0.1281,4312.0,4311.2,3.2078]
[1757532326301,0.301,4311.7,4311.0,0.31018356]
[1757532326503,0.24,4311.6,4311.0,0.31018356]
[1757532326708,0.1281,4311.5,4311.0,0.31018356]
[1757532327011,0.3136,4311.4,4311.0,0.31018356]
[1757532327302,0.24,4311.6,4311.1,0.3237]
[1757532327303,0.241,4311.6,4311.1,0.3237]
[1757532327500,3.2078,4311.8,4311.1,0.3237]
[1757532328404,0.3136,4311.7,4311.1,0.3237]
[1757532328701,0.3136,4311.7,4311.0,0.00408356]
[1757532329599,0.3136,4311.1,4311.0,0.00408356]
[1757532330095,0.5546,4311.1,4311.0,0.00408356]
[1757532332903,0.3136,4311.1,4311.0,0.00408356]
[1757532333101,0.5546,4311.1,4311.0,0.00408356]
[1757532334305,0.5546,4311.1,4308.2,6.1087025]
[1757532334306,3.2078,4310.7,4308.2,6.1087025]
[1757532334605,3.2078,4309.1,4309.0,0.1193]
[1757532334801,0.242,4309.5,4309.0,0.1193]
[1757532335008,0.242,4309.4,4309.0,0.1193]
[1757532335309,0.242,4309.6,4309.5,0.1193]
[1757532336209,3.2078,4309.9,4309.5,0.1193]
[1757532336513,3.2078,4309.9,4309.6,0.3237]
[1757532336811,0.242,4309.8,4309.6,0.3237]
[1757532337214,0.242,4309.8,4309.5,0.1193]
[1757532338110,0.242,4309.8,4309.0,0.1193]
[1757532338111,4.242,4309.8,4309.0,0.1193]
[1757532338311,4.242,4309.8,4308.2,0.3237]
[1757532338312,3.2078,4309.1,4308.2,0.3237]
[1757532338510,3.2078,4308.3,4308.2,0.3237]
[1757532339011,3.4508,4308.3,4308.2,0.3237]
[1757532340012,3.2078,4308.3,4308.2,0.3237]
[1757532340715,3.4508,4308.3,4308.2,0.3237]
[1757532341114,3.2078,4308.3,4308.2,0.3237]
[1757532341318,0.243,4308.4,4308.1,0.3237]
[1757532341613,3.2078,4309.0,4308.6,0.3237]
[1757532342017,0.244,4309.1,4308.6,0.3237]
[1757532342210,0.244,4309.1,4309.0,0.1193]
[1757532342512,3.2078,4309.5,4309.1,0.3237]
[1757532342819,3.2078,4310.4,4310.0,0.1193]
[1757532343014,3.2078,4310.4,4310.1,0.3237]
[1757532343211,3.2078,4310.4,4310.0,0.1193]
[1757532343406,3.2078,4310.9,4310.5,0.1193]
[1757532343718,0.00843,4311.3,4310.6,0.3237]
[1757532343905,0.25243,4311.3,4311.1,0.3237]
[1757532344917,4.23195001,4311.2,4310.1,0.3237]
[1757532345219,3.2078,4310.2,4310.1,0.3237]
[1757532345413,3.4528,4310.2,4309.4,0.3237]
[1757532345614,3.2078,4309.7,4309.6,0.3237]
[1757532346214,3.4528,4309.7,4309.6,0.3237]
[1757532346520,3.2078,4309.7,4309.6,0.3237]
[1757532346813,3.4528,4309.7,4309.6,0.3237]
[1757532349319,3.2078,4309.7,4309.6,0.3237]
[1757532349522,3.4528,4309.7,4309.6,0.3237]
[1757532349730,33.417,4310.8,4309.6,0.3237]
[1757532349731,3.2078,4310.2,4310.0,0.1193]
[1757532349932,36.6248,4310.8,4310.5,0.1193]
[1757532350226,0.00843,4311.3,4311.0,0.1193]
[1757532350227,3.21623,4311.3,4311.0,0.1193]
[1757532350531,3.46123,4311.3,4311.0,0.1193]
[1757532350727,3.46123,4311.3,4310.6,0.3237]
[1757532350728,7.46123,4311.3,4310.6,0.3237]
[1757532350929,7.46123,4311.3,4310.5,0.1193]
[1757532350930,3.2078,4310.7,4310.0,0.443]
[1757532351225,4.25343,4311.3,4310.0,0.443]
[1757532351226,3.2078,4310.1,4310.0,0.443]
[1757532351628,0.245,4310.4,4310.0,0.1193]
[1757532352023,0.245,4310.4,4310.1,0.3237]
[1757532352928,3.2078,4310.6,4310.5,0.443]
[1757532353424,0.245,4311.1,4311.0,0.1193]
[1757532353630,0.245,4311.1,4311.0,0.443]
[1757532354024,0.245,4311.1,4310.5,0.1193]
[1757532354025,4.245,4311.1,4310.5,0.1193]
[1757532354329,3.2078,4310.6,4310.0,0.443]
[1757532354526,3.2078,4310.1,4310.0,0.443]
[1757532356631,3.2078,4310.7,4310.5,0.1193]
[1757532356935,3.2078,4310.7,4310.5,0.443]
[1757532357130,3.2078,4310.7,4310.6,0.324]
[1757532357324,0.245,4310.9,4310.6,0.324]
[1757532358328,0.245,4310.9,4310.5,0.1193]
[1757532359034,0.245,4310.9,4310.6,0.324]
[1757532359529,0.245,4310.9,4310.5,0.1193]
[1757532359735,0.245,4310.9,4310.6,0.324]
[1757532359931,3.2078,4311.2,4311.1,0.324]
[1757532360137,3.4528,4311.2,4311.1,0.324]
[1757532360830,7.68476,4311.2,4310.1,0.324]
[1757532361037,7.68476,4311.2,4310.0,0.1193]
[1757532361038,3.2078,4310.2,4310.0,0.1193]
[1757532361338,0.245,4310.1,4310.0,0.1193]
[1757532361632,0.245,4310.1,4309.7,0.324]
[1757532361824,0.245,4310.1,4309.5,0.1193]
[1757532362028,0.245,4310.1,4309.5,0.4433]
[1757532362237,3.2078,4309.6,4309.5,0.1193]
[1757532362435,3.4528,4309.6,4309.5,0.4433]
[1757532362935,3.4528,4309.6,4309.0,0.4439]
[1757532363136,3.2078,4309.1,4309.0,0.4439]
[1757532363839,3.4528,4309.1,4309.0,0.4439]
[1757532364133,3.4528,4309.1,4307.9,3.4528]
[1757532364134,3.4528,4309.1,4308.6,0.324]
[1757532364437,3.4528,4309.1,4308.5,0.4439]
[1757532365333,3.2078,4308.6,4308.5,0.4439]
[1757532365539,3.4528,4308.6,4308.5,0.4439]
[1757532367334,3.2078,4308.6,4308.5,0.4439]
[1757532374642,3.4528,4308.6,4308.5,0.4439]
[1757532375239,3.2078,4308.6,4308.5,0.4439]
[1757532375447,3.2078,4308.6,4307.9,3.2078]
[1757532375744,3.2078,4308.6,4307.5,0.4439]
[1757532375745,3.2078,4308.0,4306.8,0.324]
[1757532376045,0.245,4307.9,4306.8,0.324]
[1757532376232,3.2078,4307.5,4306.8,0.324]
[1757532376436,0.248,4307.4,4306.8,0.324]
[1757532376739,3.2078,4307.5,4307.1,0.324]
[1757532378143,3.4558,4307.5,4307.1,0.324]
[1757532378335,3.4558,4307.5,4307.0,0.1199]
[1757532378538,3.4558,4307.5,4307.1,0.324]
[1757532378734,3.4558,4307.5,4307.0,0.1199]
[1757532379041,0.248,4307.5,4307.1,0.324]
[1757532379637,4.23217,4307.4,4306.5,3.2078]
[1757532379841,4.23217,4307.4,4305.0,3.1208025]
[1757532379842,3.2078,4306.6,4305.2,3.2078]
[1757532380039,3.2078,4306.1,4305.2,3.2078]
[1757532380643,3.2078,4306.1,4305.2,3.4578]
[1757532380845,3.2078,4306.1,4305.2,3.2078]
[1757532381047,3.2078,4306.1,4305.0,0.2199]
[1757532381244,3.2078,4306.1,4305.3,0.18769972]
[1757532381447,3.2078,4306.1,4306.0,0.1199]
[1757532381943,3.2078,4306.1,4306.0,0.4439]
[1757532382843,33.429,4307.8,4306.5,0.4439]
[1757532382844,3.2078,4306.6,4306.5,0.4439]
[1757532384050,3.4588,4307.1,4307.0,0.4439]
[1757532385242,3.2078,4307.1,4307.0,0.4439]
[1757532385449,0.251,4307.4,4307.1,0.324]
[1757532385653,3.2078,4307.6,4307.5,0.1199]
[1757532385849,3.4588,4307.7,4307.6,0.324]
[1757532386049,3.2078,4307.7,4307.6,0.324]
[1757532386347,3.2078,4307.7,4307.5,0.1199]
[1757532386348,3.2078,4308.2,4308.1,0.324]
[1757532387338,3.2078,4308.2,4308.0,0.1199]
[1757532387542,3.2078,4308.2,4308.1,0.3266]
[1757532388654,3.4588,4308.2,4308.1,0.3266]
[1757532390639,3.4588,4308.2,4307.6,0.3266]
[1757532390845,3.2078,4307.7,4307.6,0.3266]
[1757532391040,3.4588,4307.7,4307.6,0.3266]
[1757532392152,3.4588,4307.7,4307.5,0.1199]
[1757532392451,3.4588,4307.7,4307.1,0.3266]
[1757532392647,3.2078,4307.2,4307.1,0.3266]
[1757532392851,3.4588,4307.2,4307.1,0.3266]
[1757532393251,3.4588,4307.2,4307.0,0.1199]
[1757532393950,3.4588,4307.2,4307.0,0.4465]
[1757532395054,3.4588,4307.2,4307.0,0.1199]
[1757532395251,3.4588,4307.2,4307.1,0.3266]
[1757532396848,3.2078,4307.2,4307.1,0.3266]
[1757532398350,0.25,4307.5,4307.1,4.3266]
[1757532398658,3.2078,4307.7,4307.6,0.3266]
[1757532400551,3.2078,4307.7,4307.5,0.4578]
[1757532400748,0.25,4307.6,4307.5,0.1312]
[1757532401256,0.25,4307.6,4307.1,0.3266]
[1757532401452,3.2078,4307.2,4307.1,0.3266]
[1757532401658,3.4568,4307.2,4307.1,0.3266]
[1757532401852,3.4568,4307.2,4307.0,0.1199]
[1757532402054,3.4568,4307.2,4306.6,0.3266]
[1757532402255,3.2078,4306.7,4306.6,0.3266]
[1757532402453,3.4568,4306.7,4306.6,0.3266]
[1757532404047,3.2078,4306.7,4306.6,0.3266]
[1757532405653,3.4568,4306.7,4306.6,0.3266]
[1757532406257,3.4568,4306.7,4306.5,0.1199]
[1757532406856,3.2078,4306.7,4306.6,0.3266]
[1757532407156,3.4568,4306.7,4306.0,0.4578]
[1757532407355,3.2078,4306.1,4306.0,0.4578]
[1757532407655,3.4568,4306.1,4306.0,0.4578]
[1757532409764,3.2078,4306.1,4306.0,4.4578]
[1757532410063,3.4568,4306.6,4306.5,0.4578]
[1757532411066,3.2078,4306.6,4306.5,0.4578]
[1757532415161,3.2078,4306.6,4306.5,4.4578]
[1757532416765,3.2078,4307.3,4307.1,0.312]
[1757532418665,3.2078,4307.3,4307.0,0.1312]
[1757532418861,3.2078,4307.3,4307.1,0.312]
[1757532420966,3.4558,4307.3,4307.0,0.4432]
[1757532421164,3.4558,4307.3,4307.0,0.1312]
[1757532421363,3.4558,4307.3,4306.6,0.312]
[1757532421565,3.2078,4306.7,4306.6,0.312]
[1757532421764,3.4558,4306.7,4306.6,0.312]
[1757532423167,3.4558,4306.7,4306.5,0.1312]
[1757532423369,3.4558,4306.7,4306.2,0.312]
[1757532424565,3.4558,4306.7,4306.1,0.312]
[1757532424766,3.2078,4306.2,4306.1,0.312]
[1757532424963,3.4558,4306.2,4306.1,0.312]
[1757532430167,3.4558,4306.2,4306.1,0.5161]
[1757532430468,3.4558,4306.2,4306.1,0.312]
[1757532430674,3.4558,4306.2,4305.8,0.73260695]
[1757532430675,7.4558,4306.2,4305.8,0.73260695]
[1757532430868,3.4558,4306.2,4305.9,0.312]
[1757532431068,0.247,4306.1,4306.0,0.1277]
[1757532431268,0.247,4306.1,4306.0,0.4397]
[1757532432071,0.247,4306.1,4306.0,0.1277]
[1757532433172,0.247,4306.1,4305.6,0.312]
[1757532433173,4.247,4306.1,4305.6,0.312]
[1757532433374,3.2078,4305.7,4305.6,0.312]
[1757532433671,3.4548,4305.7,4305.6,0.312]
[1757532433876,7.4548,4305.7,4305.5,0.4432]
[1757532434068,7.4548,4305.7,4305.5,0.1312]
[1757532434576,7.4548,4305.7,4305.5,0.4432]
[1757532434776,3.2078,4305.7,4305.6,0.312]
[1757532434968,3.4558,4305.7,4305.6,0.5161]
[1757532436268,3.4558,4305.7,4305.6,0.312]
[1757532438380,3.2078,4305.7,4305.6,0.312]
[1757532438678,3.4558,4305.7,4305.6,0.7315]
[1757532439070,3.2078,4305.7,4305.6,0.7315]
[1757532440079,3.2078,4305.7,4305.6,4.312]
[1757532440477,0.248,4306.1,4306.0,0.4397]
[1757532442571,3.2078,4306.2,4306.0,0.4397]
[1757532442777,3.4558,4306.2,4306.1,0.7315]
[1757532444383,3.4558,4306.2,4306.1,0.5161]
[1757532444789,3.2078,4306.2,4306.1,0.7315]
[1757532444989,3.4558,4306.2,4306.1,0.7315]
[1757532446279,3.2078,4306.2,4306.1,0.7315]
[1757532446685,3.4548,4306.2,4306.1,0.7315]
[1757532447794,3.4548,4306.2,4306.1,0.312]
[1757532448696,7.4548,4306.2,4306.0,0.1277]
[1757532448897,4.23223,4306.1,4305.5,0.1277]
[1757532449193,3.2078,4305.6,4305.5,0.1277]
[1757532449388,3.4548,4305.6,4305.5,0.4418]
[1757532451196,3.4548,4305.6,4305.5,0.1277]
[1757532451492,3.4548,4305.6,4305.5,0.4418]
[1757532451691,3.2078,4305.6,4305.5,0.4418]
[1757532451890,3.4548,4305.6,4305.5,0.4418]
[1757532456396,3.2078,4305.6,4305.5,0.4418]
[1757532456697,3.4548,4305.6,4305.5,0.4418]
[1757532457300,3.2078,4305.6,4305.5,0.4418]
[1757532458997,3.2078,4305.6,4305.5,4.4418]
[1757532459197,3.4548,4305.6,4305.5,0.4418]
[1757532461092,3.2078,4305.6,4305.5,0.4418]
[1757532461292,3.4548,4305.6,4305.5,0.4418]
[1757532470202,3.4548,4305.6,4305.5,0.6496]
[1757532470504,3.4548,4305.6,4305.5,0.4418]
[1757532471600,3.4548,4305.6,4305.5,0.1277]
[1757532471601,7.4548,4305.6,4305.5,0.1277]
[1757532471797,7.4538,4305.6,4305.5,0.4418]
[1757532474399,7.4538,4305.6,4305.5,0.1277]
[1757532474605,7.68606,4305.6,4305.0,0.2277]
[1757532474807,3.2078,4305.1,4305.0,0.5418]
[1757532474996,3.4538,4305.1,4305.0,0.5418]
[1757532475908,3.4538,4305.1,4304.5,0.1277]
[1757532476108,3.2078,4304.6,4304.5,0.1277]
[1757532476405,3.4538,4304.6,4304.5,0.1277]
[1757532477798,3.4538,4304.6,4304.5,0.4367]
[1757532479113,3.4538,4304.6,4304.5,0.6483]
[1757532484304,3.4538,4304.6,4304.5,0.4367]
[1757532484814,3.4538,4304.6,4304.0,0.1192]
[1757532484815,7.4538,4304.6,4304.0,0.4282]
[1757532485019,3.2078,4304.1,4304.0,0.4282]
[1757532485508,2.79668585,4304.1,4304.0,0.8382]
[1757532485720,3.04268585,4304.1,4304.0,0.8382]
[1757532485915,3.04268585,4304.1,4304.0,0.6398]
[1757532486414,3.04268585,4304.1,4304.0,0.8382]
[1757532486821,2.79668585,4304.1,4304.0,0.8382]
[1757532487319,3.04268585,4304.1,4304.0,0.8382]
[1757532488111,3.04268585,4304.1,4304.0,0.6398]
[1757532488320,3.04268585,4304.1,4304.0,0.4282]
[1757532489714,3.04268585,4304.1,4304.0,0.8382]
[1757532489910,2.79668585,4304.1,4304.0,0.8382]
[1757532490111,3.04268585,4304.1,4304.0,4.8382]
[1757532490821,2.79668585,4304.1,4304.0,4.8382]
[1757532491014,0.3082,4305.0,4304.0,4.76154]
[1757532491217,0.6722,4304.9,4304.8,0.2116]
[1757532491414,0.9804,4304.9,4304.8,0.2116]
[1757532491622,0.517,4304.9,4304.8,0.719]
[1757532491821,0.865,4305.5,4305.4,0.2116]
[1757532492015,1.111,4305.5,4305.4,0.2116]
[1757532492714,0.3082,4305.4,4304.6,0.309]
[1757532492914,0.7344,4305.2,4305.1,0.2116]
[1757532493115,0.7344,4305.2,4305.1,0.41]
[1757532493315,0.9804,4305.2,4305.1,0.719]
[1757532493526,0.7344,4305.2,4305.1,0.41]
[1757532493817,0.41808,4304.6,4304.5,3.3383]
[1757532494211,0.41808,4304.6,4304.5,3.57061]
[1757532494412,0.72628,4304.6,4304.5,3.3072]
[1757532495423,0.66408,4304.6,4304.5,7.57061]
[1757532495821,0.66408,4304.6,4304.5,7.3383]
[1757532497121,0.1306,4305.0,4304.5,7.3072]
[1757532497423,0.1306,4305.0,4304.5,3.3072]
[1757532497927,0.3082,4304.9,4304.5,3.3072]
[1757532498122,0.3082,4304.8,4304.5,3.3072]
[1757532498819,0.247,4304.9,4304.5,3.3072]
[1757532499420,0.3082,4304.8,4304.5,3.3072]
[1757532499822,0.3776,4305.0,4304.5,3.3072]
[1757532500021,0.3082,4304.9,4304.5,3.3072]
[1757532500324,0.3082,4304.9,4303.9,22.0]
[1757532500325,0.1306,4307.0,4305.9,3.2078]
[1757532500537,0.1306,4307.5,4306.9,3.2078]
[1757532500715,0.1306,4307.5,4307.4,3.2078]
[1757532501126,0.5568,4307.5,4307.4,3.2078]
[1757532501317,0.5998,4307.5,4307.4,3.2078]
[1757532501521,0.1306,4307.5,4307.4,3.2078]
[1757532502321,0.4388,4307.5,4307.4,3.2078]
[1757532502518,0.6908,4307.5,4307.4,3.2078]
[1757532502723,0.4388,4307.5,4307.4,3.2078]
[1757532503126,0.1306,4308.0,4307.4,10.42528828]
[1757532503329,0.1306,4308.0,4307.9,3.2078]
[1757532503330,0.4388,4308.0,4307.9,3.2078]
[1757532503629,0.4388,4308.0,4307.9,25.2078]
[1757532503925,0.1306,4309.0,4307.9,25.2078]
[1757532504127,0.1306,4308.0,4307.9,22.0]
[1757532504325,0.1306,4308.0,4307.9,25.2078]
[1757532504527,0.1306,4309.0,4307.9,32.29067645]
[1757532504729,0.1306,4309.0,4308.4,3.2078]
[1757532505324,0.1306,4309.0,4308.4,7.2078]
[1757532505533,0.1306,4309.0,4308.4,3.2078]
[1757532505731,4.6088,4308.5,4306.1,0.41793]
[1757532505925,0.1306,4308.0,4307.7,3.2078]
[1757532506125,0.3082,4307.9,4307.7,3.2078]
[1757532506328,0.256,4307.8,4307.7,3.2078]
[1757532506526,0.3082,4307.8,4307.7,3.2078]
[1757532508236,0.1306,4308.0,4306.1,0.3086]
[1757532508237,0.23217,4307.7,4306.1,0.3086]
[1757532508528,3.2078,4306.2,4306.0,0.1271]
[1757532508831,33.622,4306.1,4306.0,0.1271]
[1757532509029,37.702,4306.1,4305.5,0.1271]
[1757532509223,3.2078,4305.6,4305.5,0.1271]
[1757532509418,3.2078,4305.6,4305.5,1e-08]
[1757532509623,3.4648,4305.6,4305.5,1e-08]
[1757532509835,7.4648,4305.6,4305.0,1e-08]
[1757532510021,3.2078,4305.1,4305.0,1e-08]
[1757532510423,3.2078,4305.1,4305.0,0.30860001]
[1757532510625,7.2078,4305.1,4304.5,0.1271]
[1757532510834,3.2078,4304.6,4303.4,3.2078]
[1757532512839,3.2078,4304.6,4303.5,0.3086]
[1757532515539,0.1266,4305.5,4304.5,3.2078]
[1757532515733,0.1266,4306.5,4305.4,3.2078]
[1757532515927,0.4247,4306.5,4306.4,3.2078]
[1757532517742,0.4247,4306.0,4305.9,3.4668]
[1757532519341,0.1266,4306.5,4305.9,3.4668]
[1757532519541,0.4247,4306.5,4306.4,3.2078]
[1757532521242,0.4247,4307.0,4306.4,7.2078]
[1757532521542,0.4247,4307.0,4306.9,3.2078]
[1757532523943,0.84254,4307.0,4306.9,3.2078]
[1757532525040,0.54444,4307.0,4306.9,3.2078]
[1757532525239,0.54444,4307.0,4306.9,3.4648]
[1757532525747,0.41784,4307.1,4306.9,3.4648]
[1757532526442,0.41784,4307.1,4307.0,22.7]
[1757532526847,0.2981,4307.4,4307.0,26.7]
[1757532527036,0.1266,4307.5,4307.0,22.7]
[1757532527233,0.8425,4307.5,4307.4,3.2078]
[1757532529138,0.4247,4307.5,4307.4,3.2078]
[1757532529338,0.1266,4308.0,4307.4,7.2078]
[1757532529538,0.1266,4308.0,4307.9,3.2078]
[1757532529842,0.1266,4308.0,4307.9,3.4648]
[1757532530743,0.1266,4308.5,4308.0,0.41774]
[1757532530940,0.1266,4308.5,4308.4,3.2078]
[1757532531134,0.1266,4308.5,4308.4,3.4638]
[1757532531645,0.4247,4308.5,4308.4,3.4638]
[1757532532043,0.4247,4308.5,4308.4,3.4648]
[1757532533641,0.4247,4308.5,4308.4,0.257]
[1757532535046,0.4247,4308.5,4308.2,3.2078]
[1757532535047,0.1266,4308.5,4308.2,3.2078]
[1757532535348,0.2981,4308.4,4308.3,0.256]